bitfinex/quotes_SOLUSD_20250604
["timestamp","ask_amount","ask_price","bid_price","bid_amount"]
[1749041287007,14.52599974,155.65,155.64,0.14216157]
[1749041287208,15.32794104,155.65,155.63,0.14216157]
[1749041287493,14.52599974,155.64,155.62,0.14216157]
[1749041287694,15.32794104,155.63,155.61,0.28432314]
[1749041287902,14.52599974,155.63,155.61,0.28432314]
[1749041288084,14.52599974,155.64,155.61,0.28432314]
[1749041288283,15.32794104,155.63,155.61,0.14216157]
[1749041289188,14.52599974,155.62,155.58,18.79181043]
[1749041289388,14.52599974,155.59,155.58,18.933972]
[1749041289612,14.52599974,155.59,155.58,0.28432314]
[1749041289992,14.52599974,155.59,155.58,0.14216157]
[1749041291809,26.0,155.63,155.59,0.14216157]
[1749041292012,14.52599974,155.6,155.59,0.14216157]
[1749041293710,14.52599974,155.6,155.56,0.28432314]
[1749041293882,14.52599974,155.57,155.56,0.28432314]
[1749041294506,14.52599974,155.58,155.56,0.28432314]
[1749041294806,14.52599974,155.57,155.56,0.28432314]
[1749041295398,14.52599974,155.58,155.56,0.28432314]
[1749041295597,14.52599974,155.58,155.56,0.36432314]
[1749041297701,14.52599974,155.59,155.56,0.36432314]
[1749041297885,14.52599974,155.6,155.56,14.89032288]
[1749041298389,14.52599974,155.61,155.56,14.89032288]
[1749041298591,14.52599974,155.61,155.59,0.14216157]
[1749041299485,0.8019413,155.64,155.59,0.14216157]
[1749041299695,14.52599974,155.63,155.59,0.14216157]
[1749041300010,14.52599974,155.62,155.59,0.14216157]
[1749041300211,14.52599974,155.61,155.59,0.14216157]
[1749041302788,14.52599974,155.62,155.59,0.14216157]
[1749041303210,2.4158413,155.65,155.59,0.14216157]
[1749041303383,14.52599974,155.62,155.59,0.14216157]
[1749041304393,14.52599974,155.62,155.58,18.933972]
[1749041306525,14.52599974,155.61,155.58,18.933972]
[1749041307394,14.52599974,155.63,155.61,0.14216157]
[1749041307589,111.3,155.67,155.64,0.28432314]
[1749041307590,85.3,155.67,155.64,0.28432314]
[1749041307901,0.8019413,155.66,155.64,0.28432314]
[1749041308114,0.8019413,155.66,155.64,0.14216157]
[1749041308301,15.32794104,155.66,155.64,0.14216157]
[1749041308992,14.52599974,155.65,155.64,0.14216157]
[1749041309920,14.52599974,155.66,155.63,0.28432314]
[1749041310107,0.8019413,155.65,155.63,0.28432314]
[1749041311399,15.32794104,155.65,155.63,0.28432314]
[1749041311599,14.52599974,155.64,155.63,0.14216157]
[1749041313620,14.52599974,155.64,155.6,0.14216157]
[1749041313810,15.32794104,155.63,155.59,0.28432314]
[1749041314321,14.52599974,155.62,155.59,0.28432314]
[1749041315125,1.08626444,155.66,155.59,0.28432314]
[1749041315315,14.52599974,155.63,155.61,0.28432314]
[1749041317110,0.8019413,155.66,155.61,0.28432314]
[1749041317111,14.52599974,155.64,155.61,0.28432314]
[1749041317329,14.52599974,155.65,155.61,14.81032288]
[1749041317525,14.52599974,155.65,155.63,0.14216157]
[1749041320824,14.52599974,155.64,155.61,0.28432314]
[1749041322908,14.52599974,155.64,155.59,0.28432314]
[1749041323121,14.52599974,155.64,155.61,0.28432314]
[1749041325321,14.52599974,155.62,155.61,0.14216157]
[1749041325518,14.52599974,155.62,155.59,0.14216157]
[1749041330330,14.52599974,155.63,155.59,0.14216157]
[1749041331621,14.52599974,155.64,155.61,0.14216157]
[1749041332025,14.52599974,155.63,155.61,0.14216157]
[1749041333947,26.8019413,155.67,155.6,0.28432314]
[1749041334143,14.52599974,155.65,155.6,0.28432314]
[1749041334948,14.52599974,155.64,155.6,0.28432314]
[1749041336840,14.52599974,155.63,155.6,0.28432314]
[1749041339761,14.52599974,155.61,155.59,0.14216157]
[1749041340430,14.52599974,155.61,155.59,0.28432314]
[1749041341354,14.52599974,155.61,155.59,0.14216157]
[1749041341555,14.52599974,155.61,155.59,0.28432314]
[1749041341945,29.85394078,155.6,155.54,8.14659588]
[1749041342180,1.5517,155.59,155.55,0.14216157]
[1749041342348,14.52599974,155.56,155.55,0.14216157]
[1749041342533,14.52599974,155.56,155.55,18.933972]
[1749041342732,14.52599974,155.56,155.55,0.14216157]
[1749041343054,14.52599974,155.56,155.55,18.933972]
[1749041343259,14.52599974,155.56,155.55,18.79181043]
[1749041343557,14.52599974,155.56,155.55,18.933972]
[1749041346757,26.0,155.57,155.56,0.14216157]
[1749041346956,40.52599974,155.57,155.56,0.14216157]
[1749041348660,2.46510287,155.63,155.56,0.14216157]
[1749041348867,14.52599974,155.61,155.59,0.14216157]
[1749041349069,14.52599974,155.62,155.59,0.14216157]
[1749041349237,14.52599974,155.63,155.61,0.14216157]
[1749041349437,14.52599974,155.62,155.61,0.14216157]
[1749041349941,14.52599974,155.62,155.6,0.28432314]
[1749041354559,14.52599974,155.63,155.6,18.933972]
[1749041357669,14.52599974,155.62,155.59,0.28432314]
[1749041359051,14.52599974,155.6,155.59,0.14216157]
[1749041359464,14.52599974,155.6,155.59,0.28432314]
[1749041362185,14.52599974,155.6,155.56,0.28432314]
[1749041362372,14.52599974,155.58,155.56,0.28432314]
[1749041367067,2.4195413,155.61,155.56,0.28432314]
[1749041367386,14.52599974,155.58,155.56,0.28432314]
[1749041372064,14.52599974,155.6,155.56,0.28432314]
[1749041372863,14.52599974,155.6,155.56,14.81032288]
[1749041373060,1.6176,155.61,155.58,0.28432314]
[1749041373295,1.6176,155.61,155.58,14.81032288]
[1749041373590,14.52599974,155.62,155.6,0.28432314]
[1749041376270,14.52599974,155.63,155.6,0.28432314]
[1749041376489,14.52599974,155.64,155.62,0.28432314]
[1749041376679,14.52599974,155.63,155.62,0.28432314]
[1749041376865,2.3231413,155.65,155.62,0.14216157]
[1749041377294,14.52599974,155.64,155.62,0.14216157]
[1749041378272,14.52599974,155.63,155.62,0.14216157]
[1749041378787,14.52599974,155.64,155.61,0.28432314]
[1749041379364,1.5212,155.65,155.61,0.28432314]
[1749041379365,14.52599974,155.63,155.61,0.28432314]
[1749041381087,1.5212,155.65,155.61,0.28432314]
[1749041381272,14.52599974,155.63,155.61,0.28432314]
[1749041382671,14.52599974,155.62,155.59,0.28432314]
[1749041383070,14.52599974,155.61,155.59,0.28432314]
[1749041383272,14.52599974,155.61,155.59,0.14216157]
[1749041383573,14.52599974,155.61,155.59,0.28432314]
[1749041383784,14.52599974,155.62,155.59,0.28432314]
[1749041386405,14.52599974,155.6,155.55,18.79181043]
[1749041386704,14.52599974,155.58,155.55,18.79181043]
[1749041386909,14.52599974,155.56,155.55,0.14216157]
[1749041387077,14.52599974,155.56,155.52,6.76856686]
[1749041387399,16.31792288,155.6,155.52,6.76856686]
[1749041387400,14.52599974,155.53,155.52,6.76856686]
[1749041387595,14.52599974,155.53,155.52,25.70253886]
[1749041387801,14.52599974,155.53,155.52,25.56037729]
[1749041388588,14.52599974,155.53,155.52,25.70253886]
[1749041388890,14.52599974,155.53,155.52,25.56037729]
[1749041389484,14.52599974,155.53,155.52,25.70253886]
[1749041390590,0.8019413,155.57,155.53,0.28432314]
[1749041390591,26.94410287,155.57,155.53,0.28432314]
[1749041390791,14.52599974,155.54,155.53,0.28432314]
[1749041401418,16.15939974,155.54,155.53,0.14216157]
[1749041403721,56.96972262,155.54,155.43,22.20429974]
[1749041403898,14.52599974,155.46,155.44,0.08]
[1749041404104,14.52599974,155.47,155.44,0.08]
[1749041404423,14.52599974,155.47,155.45,0.14216157]
[1749041404624,14.52599974,155.47,155.45,0.28432314]
[1749041405008,14.52599974,155.47,155.45,0.08]
[1749041405406,14.52599974,155.47,155.45,0.22216157]
[1749041407301,14.52599974,155.46,155.45,0.22216157]
[1749041408127,14.52599974,155.46,155.45,0.08]
[1749041409834,14.52599974,155.46,155.44,0.28432314]
[1749041410036,14.52599974,155.45,155.44,0.28432314]
[1749041413814,14.52599974,155.45,155.44,18.933972]
[1749041415713,14.52599974,155.47,155.44,18.933972]
[1749041416421,14.52599974,155.48,155.44,33.45997174]
[1749041418127,14.52599974,155.48,155.46,0.14216157]
[1749041420121,14.52599974,155.48,155.45,0.28432314]
[1749041423046,14.52599974,155.47,155.45,0.28432314]
[1749041427055,14.52599974,155.48,155.45,0.28432314]
[1749041427244,14.52599974,155.47,155.45,0.28432314]
[1749041428337,14.52599974,155.48,155.45,0.28432314]
[1749041429441,26.8019413,155.51,155.45,0.28432314]
[1749041429755,14.52599974,155.46,155.45,0.14216157]
[1749041430660,14.52599974,155.46,155.45,0.28432314]
[1749041431156,14.52599974,155.47,155.45,0.28432314]
[1749041431341,14.52599974,155.46,155.45,0.28432314]
[1749041434665,14.52599974,155.47,155.45,0.28432314]
[1749041436159,14.52599974,155.46,155.45,0.28432314]
[1749041436760,14.52599974,155.47,155.45,0.28432314]
[1749041438363,14.52599974,155.48,155.45,0.28432314]
[1749041439262,14.52599974,155.49,155.45,0.28432314]
[1749041439655,1.5271,155.52,155.5,0.14216157]
[1749041439833,16.05309974,155.52,155.5,0.14216157]
[1749041441051,14.52599974,155.52,155.5,0.14216157]
[1749041443164,14.52599974,155.51,155.49,0.14216157]
[1749041443366,14.52599974,155.5,155.47,0.14216157]
[1749041443550,14.52599974,155.49,155.47,0.14216157]
[1749041443953,14.52599974,155.49,155.45,14.66816131]
[1749041444153,14.52599974,155.48,155.45,0.14216157]
[1749041444666,14.52599974,155.48,155.45,0.28432314]
[1749041445258,14.52599974,155.49,155.47,0.28432314]
[1749041445454,14.52599974,155.5,155.47,0.28432314]
[1749041446058,14.52599974,155.5,155.47,0.14216157]
[1749041446264,14.52599974,155.51,155.49,0.14216157]
[1749041446767,14.52599974,155.5,155.49,0.14216157]
[1749041449060,14.52599974,155.5,155.47,0.28432314]
[1749041449260,14.52599974,155.48,155.47,0.28432314]
[1749041449478,14.52599974,155.48,155.47,0.14216157]
[1749041449659,15.32794104,155.48,155.37,14.52599974]
[1749041449861,14.52599974,155.44,155.39,14.52599974]
[1749041450158,0.94410287,155.48,155.4,18.64964886]
[1749041450358,14.52599974,155.43,155.4,18.64964886]
[1749041450561,14.52599974,155.41,155.36,14.66816131]
[1749041450778,14.52599974,155.41,155.37,14.52599974]
[1749041450974,14.52599974,155.41,155.38,18.64964886]
[1749041451172,14.52599974,155.41,155.36,18.79181043]
[1749041451357,14.52599974,155.41,155.37,14.52599974]
[1749041451683,14.52599974,155.41,155.38,0.28432314]
[1749041451867,14.52599974,155.41,155.38,0.14216157]
[1749041452073,14.52599974,155.42,155.38,14.66816131]
[1749041452379,2.3369413,155.45,155.37,0.14216157]
[1749041452580,14.52599974,155.41,155.37,0.28432314]
[1749041452779,14.52599974,155.41,155.37,14.81032288]
[1749041454657,14.52599974,155.41,155.38,0.08]
[1749041457478,14.52599974,155.4,155.38,0.08]
[1749041458183,0.8019413,155.43,155.38,0.08]
[1749041458558,14.52599974,155.39,155.38,0.08]
[1749041460278,48.28369974,155.39,155.38,0.08]
[1749041460477,48.28369974,155.39,155.3,0.14216157]
[1749041460659,0.8019413,155.38,155.33,14.52599974]
[1749041460872,14.52599974,155.38,155.34,18.79181043]
[1749041461268,14.52599974,155.36,155.32,14.52599974]
[1749041461472,14.52599974,155.35,155.33,0.14216157]
[1749041461679,14.52599974,155.35,155.33,0.28432314]
[1749041461989,14.52599974,155.36,155.33,0.28432314]
[1749041462373,14.52599974,155.38,155.35,0.28432314]
[1749041462673,14.52599974,155.4,155.38,0.14216157]
[1749041463082,0.8019413,155.42,155.38,0.14216157]
[1749041463281,14.52599974,155.4,155.38,0.14216157]
[1749041463479,14.52599974,155.41,155.38,0.28432314]
[1749041463786,14.52599974,155.4,155.38,0.28432314]
[1749041464178,14.52599974,155.4,155.38,0.14216157]
[1749041464571,14.52599974,155.4,155.37,0.28432314]
[1749041468570,14.52599974,155.4,155.38,18.933972]
[1749041470186,14.52599974,155.41,155.38,18.933972]
[1749041470510,16.06829974,155.43,155.41,0.14216157]
[1749041472081,14.52599974,155.42,155.41,0.14216157]
[1749041475474,14.52599974,155.42,155.39,0.36432314]
[1749041476094,16.06829974,155.43,155.41,0.14216157]
[1749041476376,14.52599974,155.42,155.41,0.14216157]
[1749041477974,16.06829974,155.43,155.41,0.14216157]
[1749041478776,1.5423,155.43,155.41,0.14216157]
[1749041478976,16.06829974,155.43,155.41,0.14216157]
[1749041480100,14.52599974,155.44,155.41,0.14216157]
[1749041482811,14.52599974,155.45,155.43,0.14216157]
[1749041483591,0.8019413,155.46,155.43,0.14216157]
[1749041483787,14.52599974,155.45,155.43,0.14216157]
[1749041485006,2.3935413,155.47,155.43,0.14216157]
[1749041485174,14.52599974,155.46,155.43,0.14216157]
[1749041485379,14.52599974,155.45,155.43,0.14216157]
[1749041485580,0.8019413,155.46,155.43,0.14216157]
[1749041485825,15.32794104,155.47,155.44,0.14216157]
[1749041485983,99.82599974,155.49,155.46,0.14216157]
[1749041486303,1.5807,155.51,155.47,0.14216157]
[1749041486304,14.52599974,155.5,155.47,0.14216157]
[1749041486504,0.8019413,155.5,155.47,0.14216157]
[1749041486709,14.52599974,155.49,155.47,0.14216157]
[1749041487008,15.32794104,155.5,155.47,0.14216157]
[1749041487211,0.8019413,155.5,155.47,0.14216157]
[1749041487916,0.8019413,155.51,155.48,0.14216157]
[1749041488203,14.52599974,155.52,155.48,0.14216157]
[1749041488406,14.52599974,155.5,155.47,0.14216157]
[1749041489608,15.32794104,155.49,155.46,0.28432314]
[1749041490103,14.52599974,155.47,155.46,0.14216157]
[1749041490303,14.52599974,155.47,155.43,18.79181043]
[1749041490603,14.52599974,155.44,155.43,0.14216157]
[1749041490808,14.52599974,155.44,155.43,0.28432314]
[1749041491982,14.52599974,155.44,155.43,0.14216157]
[1749041494894,0.8019413,155.48,155.43,33.45997174]
[1749041495207,16.13869974,155.49,155.46,0.14216157]
[1749041495416,14.52599974,155.49,155.46,0.14216157]
[1749041495704,14.52599974,155.48,155.46,0.14216157]
[1749041497096,14.52599974,155.49,155.46,0.14216157]
[1749041497288,14.52599974,155.48,155.46,0.14216157]
[1749041498896,14.52599974,155.48,155.44,0.28432314]
[1749041504103,14.52599974,155.48,155.46,0.28432314]
[1749041510519,0.8019413,155.5,155.46,0.28432314]
[1749041510722,14.52599974,155.48,155.46,0.28432314]
[1749041518600,14.52599974,155.49,155.46,0.28432314]
[1749041520339,15.32794104,155.48,155.43,14.66816131]
[1749041520530,15.32794104,155.48,155.44,18.87181043]
[1749041521407,14.52599974,155.48,155.44,33.39781017]
[1749041527038,26.8019413,155.5,155.46,18.79181043]
[1749041527364,1.505,155.53,155.5,0.28432314]
[1749041527551,1.505,155.53,155.5,14.81032288]
[1749041527763,20.57659974,155.55,155.52,0.28432314]
[1749041527764,0.8019413,155.55,155.52,0.28432314]
[1749041527915,15.32794104,155.55,155.52,0.28432314]
[1749041528421,26.0,155.56,155.52,14.81032288]
[1749041528422,15.32794104,155.56,155.52,14.81032288]
[1749041528618,0.8019413,155.55,155.52,18.933972]
[1749041528830,14.52599974,155.55,155.52,18.933972]
[1749041529712,15.32794104,155.55,155.52,18.933972]
[1749041530828,14.52599974,155.55,155.52,18.933972]
[1749041531651,14.52599974,155.56,155.52,14.81032288]
[1749041532726,2.4404413,155.58,155.54,0.28432314]
[1749041532925,14.52599974,155.57,155.54,0.28432314]
[1749041533523,2.4404413,155.58,155.54,0.28432314]
[1749041533730,15.32794104,155.59,155.54,14.81032288]
[1749041534221,15.32794104,155.59,155.56,18.933972]
[1749041534536,40.52599974,155.6,155.56,18.933972]
[1749041534734,14.52599974,155.6,155.56,18.933972]
[1749041535717,2.4565413,155.62,155.56,33.45997174]
[1749041536028,2.4565413,155.62,155.58,14.81032288]
[1749041536228,2.4565413,155.62,155.6,0.28432314]
[1749041536543,1.6546,155.62,155.6,0.28432314]
[1749041537333,16.98254104,155.62,155.6,0.28432314]
[1749041537944,16.18059974,155.62,155.6,0.28432314]
[1749041541130,14.52599974,155.63,155.6,0.28432314]
[1749041541530,14.52599974,155.64,155.6,0.28432314]
[1749041541732,14.52599974,155.64,155.62,0.28432314]
[1749041543735,14.52599974,155.65,155.62,0.28432314]
[1749041543931,15.32794104,155.64,155.62,0.28432314]
[1749041544238,14.52599974,155.63,155.62,0.28432314]
[1749041545132,14.52599974,155.64,155.62,0.14216157]
[1749041545433,14.52599974,155.63,155.62,0.14216157]
[1749041545637,14.52599974,155.63,155.59,14.52599974]
[1749041545638,14.52599974,155.63,155.59,0.28432314]
[1749041545843,14.52599974,155.6,155.59,0.14216157]
[1749041546045,14.52599974,155.6,155.59,0.28432314]
[1749041546351,14.52599974,155.61,155.59,0.14216157]
[1749041546553,14.52599974,155.61,155.59,0.28432314]
[1749041547048,2.56050287,155.66,155.61,0.28432314]
[1749041547234,14.52599974,155.64,155.61,0.28432314]
[1749041547825,14.52599974,155.65,155.61,0.28432314]
[1749041548436,2.4183413,155.66,155.61,0.28432314]
[1749041548644,14.52599974,155.65,155.61,0.28432314]
[1749041549228,14.52599974,155.65,155.62,0.28432314]
[1749041549625,16.94434104,155.66,155.62,14.81032288]
[1749041549837,16.94434104,155.66,155.62,0.28432314]
[1749041550431,14.52599974,155.67,155.64,0.28432314]
[1749041552858,14.52599974,155.68,155.64,0.28432314]
[1749041553041,14.52599974,155.68,155.65,0.28432314]
[1749041553237,0.8019413,155.69,155.65,0.28432314]
[1749041553238,14.52599974,155.69,155.65,14.81032288]
[1749041553450,16.09219974,155.7,155.67,18.933972]
[1749041554357,1.5662,155.7,155.67,18.933972]
[1749041554851,15.32794104,155.69,155.67,0.14216157]
[1749041555058,14.52599974,155.68,155.67,0.14216157]
[1749041555653,35.20669948,155.68,155.57,6.45473972]
[1749041555835,14.52599974,155.63,155.59,18.79181043]
[1749041556042,14.52599974,155.62,155.59,0.14216157]
[1749041557165,14.52599974,155.61,155.59,0.14216157]
[1749041557672,14.52599974,155.62,155.59,0.14216157]
[1749041558448,14.52599974,155.62,155.59,0.28432314]
[1749041558869,14.52599974,155.6,155.59,0.28432314]
[1749041559262,14.52599974,155.6,155.59,0.14216157]
[1749041559572,14.52599974,155.6,155.59,0.28432314]
[1749041559773,14.52599974,155.61,155.59,0.28432314]
[1749041565178,2.3476413,155.63,155.59,0.28432314]
[1749041565475,2.3787413,155.67,155.61,14.52599974]
[1749041565770,14.52599974,155.64,155.62,0.14216157]
[1749041567563,14.52599974,155.63,155.61,0.14216157]
[1749041567762,14.52599974,155.62,155.61,0.14216157]
[1749041569162,14.52599974,155.63,155.61,0.14216157]
[1749041569562,14.52599974,155.63,155.59,14.81032288]
[1749041569764,14.52599974,155.64,155.59,14.81032288]
[1749041569964,14.52599974,155.63,155.59,0.28432314]
[1749041570962,14.52599974,155.62,155.59,0.28432314]
[1749041572104,26.0,155.65,155.59,0.14216157]
[1749041572410,14.52599974,155.61,155.59,0.14216157]
[1749041572560,14.52599974,155.61,155.59,0.28432314]
[1749041572755,14.52599974,155.62,155.59,0.28432314]
[1749041573763,14.52599974,155.61,155.59,0.28432314]
[1749041574573,26.0,155.65,155.59,0.28432314]
[1749041574773,0.94410287,155.66,155.59,14.81032288]
[1749041574774,0.8019413,155.66,155.59,14.81032288]
[1749041574991,1.5768,155.67,155.59,0.28432314]
[1749041575189,14.52599974,155.66,155.63,0.14216157]
[1749041575786,14.52599974,155.65,155.63,0.14216157]
[1749041576191,14.52599974,155.66,155.63,0.14216157]
[1749041576595,14.52599974,155.65,155.63,0.14216157]
[1749041576896,14.52599974,155.64,155.63,0.14216157]
[1749041577698,14.52599974,155.65,155.63,0.14216157]
[1749041578073,14.52599974,155.64,155.63,0.14216157]
[1749041578907,14.52599974,155.64,155.6,0.28432314]
[1749041579295,26.8019413,155.65,155.6,0.28432314]
[1749041579596,14.52599974,155.64,155.6,0.28432314]
[1749041580295,0.8019413,155.65,155.6,0.28432314]
[1749041580505,14.52599974,155.64,155.61,0.14216157]
[1749041582020,14.52599974,155.66,155.62,18.933972]
[1749041582178,1.5768,155.67,155.62,14.81032288]
[1749041582384,1.5768,155.67,155.63,33.31781017]
[1749041582385,26.0,155.64,155.63,33.31781017]
[1749041582991,26.0,155.65,155.64,18.933972]
[1749041583191,16.10279974,155.67,155.64,18.933972]
[1749041583392,2.4332413,155.71,155.66,18.933972]
[1749041583598,14.52599974,155.69,155.66,18.933972]
[1749041583807,14.52599974,155.67,155.66,0.28432314]
[1749041584126,14.52599974,155.67,155.66,0.14216157]
[1749041584410,0.8019413,155.69,155.66,0.14216157]
[1749041584411,14.52599974,155.68,155.66,0.14216157]
[1749041585982,14.52599974,155.67,155.64,18.933972]
[1749041588987,28.4332413,155.71,155.62,18.933972]
[1749041588988,14.52599974,155.65,155.62,18.933972]
[1749041589422,14.52599974,155.64,155.62,0.14216157]
[1749041589709,14.52599974,155.63,155.58,14.66816131]
[1749041589898,14.52599974,155.62,155.59,0.14216157]
[1749041590085,14.52599974,155.63,155.6,18.79181043]
[1749041590485,0.94410287,155.67,155.6,18.79181043]
[1749041590726,14.52599974,155.64,155.6,14.66816131]
[1749041590892,14.52599974,155.65,155.61,0.14216157]
[1749041592236,14.52599974,155.64,155.61,0.14216157]
[1749041592819,0.8019413,155.67,155.61,0.14216157]
[1749041593023,14.52599974,155.65,155.61,0.14216157]
[1749041593841,0.8019413,155.67,155.62,0.28432314]
[1749041594037,14.52599974,155.64,155.62,0.28432314]
[1749041594819,14.52599974,155.64,155.62,0.14216157]
[1749041597527,14.52599974,155.64,155.61,0.28432314]
[1749041600722,14.52599974,155.63,155.6,0.28432314]
[1749041600917,14.52599974,155.64,155.6,14.81032288]
[1749041602233,0.8019413,155.7,155.62,33.45997174]
[1749041602537,14.52599974,155.68,155.65,0.14216157]
[1749041603752,0.8019413,155.7,155.65,0.14216157]
[1749041603927,14.52599974,155.68,155.65,0.14216157]
[1749041605736,14.52599974,155.68,155.64,18.933972]
[1749041606435,14.52599974,155.72,155.69,0.28432314]
[1749041606627,14.52599974,155.73,155.71,0.28432314]
[1749041606828,14.52599974,155.72,155.71,0.28432314]
[1749041607019,14.52599974,155.72,155.71,0.14216157]
[1749041607332,14.52599974,155.72,155.66,0.28432314]
[1749041607535,14.52599974,155.69,155.66,0.28432314]
[1749041609330,14.52599974,155.7,155.66,14.81032288]
[1749041609928,14.52599974,155.69,155.66,0.28432314]
[1749041610132,14.52599974,155.68,155.66,0.28432314]
[1749041610329,14.52599974,155.68,155.66,0.14216157]
[1749041610524,14.52599974,155.68,155.66,0.28432314]
[1749041610725,14.52599974,155.67,155.64,18.933972]
[1749041611522,14.52599974,155.67,155.64,0.14216157]
[1749041612126,14.52599974,155.68,155.65,0.14216157]
[1749041615939,14.52599974,155.68,155.63,0.28432314]
[1749041616240,14.52599974,155.67,155.63,14.81032288]
[1749041617127,14.52599974,155.65,155.62,0.14216157]
[1749041617345,14.52599974,155.64,155.62,0.14216157]
[1749041617550,14.52599974,155.64,155.62,0.28432314]
[1749041617722,14.52599974,155.63,155.62,0.14216157]
[1749041618442,14.52599974,155.63,155.6,0.14216157]
[1749041618629,14.52599974,155.62,155.6,0.28432314]
[1749041618833,14.52599974,155.63,155.6,0.28432314]
[1749041619046,14.52599974,155.64,155.61,0.14216157]
[1749041619926,14.52599974,155.66,155.62,18.933972]
[1749041620130,14.52599974,155.66,155.62,33.45997174]
[1749041620346,14.52599974,155.65,155.62,18.933972]
[1749041620751,14.52599974,155.65,155.62,0.14216157]
[1749041621453,2.3716413,155.69,155.62,0.14216157]
[1749041621454,14.52599974,155.64,155.62,0.14216157]
[1749041621821,14.52599974,155.63,155.57,6.45473972]
[1749041622017,1.5246,155.63,155.58,18.79181043]
[1749041622222,14.52599974,155.61,155.58,18.79181043]
[1749041622623,14.52599974,155.63,155.6,0.28432314]
[1749041622825,14.52599974,155.64,155.6,0.28432314]
[1749041623034,14.52599974,155.62,155.6,0.28432314]
[1749041623223,14.52599974,155.62,155.6,0.14216157]
[1749041624949,14.52599974,155.63,155.59,14.81032288]
[1749041626332,14.52599974,155.66,155.63,0.28432314]
[1749041626651,1.5728,155.67,155.63,0.28432314]
[1749041626835,16.09879974,155.67,155.63,0.28432314]
[1749041627249,1.5728,155.67,155.63,0.28432314]
[1749041627440,16.09879974,155.67,155.63,0.28432314]
[1749041627647,14.52599974,155.66,155.63,0.28432314]
[1749041632165,15.32794104,155.69,155.64,33.45997174]
[1749041632358,14.52599974,155.68,155.64,33.45997174]
[1749041633849,14.52599974,155.67,155.64,18.933972]
[1749041635459,14.52599974,155.68,155.64,14.81032288]
[1749041638773,14.52599974,155.67,155.64,0.14216157]
[1749041638970,14.52599974,155.67,155.64,18.933972]
[1749041639468,14.52599974,155.68,155.64,14.81032288]
[1749041641753,0.8019413,155.69,155.64,14.81032288]
[1749041641945,14.52599974,155.67,155.64,18.933972]
[1749041645669,14.52599974,155.68,155.64,14.81032288]
[1749041646460,0.8019413,155.69,155.64,14.81032288]
[1749041646672,14.52599974,155.68,155.64,14.81032288]
[1749041649400,0.8019413,155.7,155.66,33.45997174]
[1749041649600,16.10719974,155.71,155.69,0.14216157]
[1749041649758,14.52599974,155.7,155.69,0.14216157]
[1749041659303,16.10719974,155.71,155.68,18.933972]
[1749041659460,14.52599974,155.71,155.68,18.933972]
[1749041659664,0.8019413,155.73,155.68,14.81032288]
[1749041659885,14.52599974,155.72,155.68,14.81032288]
[1749041660770,14.52599974,155.71,155.68,0.28432314]
[1749041661095,0.8019413,155.73,155.68,14.81032288]
[1749041661096,14.52599974,155.72,155.68,14.81032288]
[1749041661556,0.8019413,155.73,155.68,14.81032288]
[1749041661762,14.52599974,155.72,155.68,14.81032288]
[1749041662772,14.52599974,155.71,155.68,0.28432314]
[1749041664865,14.52599974,155.72,155.68,14.81032288]
[1749041665079,14.52599974,155.72,155.7,18.933972]
[1749041666896,14.52599974,155.73,155.7,18.933972]
[1749041668812,16.96304104,155.75,155.71,14.52599974]
[1749041669000,16.16109974,155.75,155.72,18.933972]
[1749041669376,15.32794104,155.76,155.72,14.81032288]
[1749041669598,0.8019413,155.77,155.74,18.79181043]
[1749041669782,15.32794104,155.77,155.74,18.79181043]
[1749041671183,15.32794104,155.77,155.73,0.14216157]
[1749041671396,14.52599974,155.76,155.73,0.14216157]
[1749041671800,0.8019413,155.77,155.73,0.14216157]
[1749041672004,14.52599974,155.76,155.73,0.14216157]
[1749041672180,14.52599974,155.76,155.7,0.28432314]
[1749041672377,14.52599974,155.75,155.73,0.28432314]
[1749041674803,14.52599974,155.75,155.72,0.28432314]
[1749041676405,14.52599974,155.75,155.72,18.933972]
[1749041676593,14.52599974,155.74,155.72,0.14216157]
[1749041676791,14.52599974,155.74,155.7,33.31781017]
[1749041676792,14.52599974,155.74,155.71,0.14216157]
[1749041678990,14.52599974,155.75,155.71,0.14216157]
[1749041681014,14.52599974,155.73,155.71,0.14216157]
[1749041681319,14.52599974,155.73,155.69,18.79181043]
[1749041681505,14.52599974,155.73,155.7,0.14216157]
[1749041683015,0.8019413,155.76,155.7,0.14216157]
[1749041683016,14.52599974,155.72,155.7,0.14216157]
[1749041683213,15.32794104,155.71,155.68,0.14216157]
[1749041683509,14.52599974,155.69,155.67,18.79181043]
[1749041683711,14.52599974,155.69,155.68,0.14216157]
[1749041684221,14.52599974,155.69,155.67,18.79181043]
[1749041684719,14.52599974,155.69,155.68,0.14216157]
[1749041685291,14.52599974,155.69,155.67,18.79181043]
[1749041685497,28.4483413,155.74,155.67,18.79181043]
[1749041685498,14.52599974,155.68,155.67,18.933972]
[1749041686802,14.52599974,155.68,155.67,18.79181043]
[1749041687220,16.06199974,155.68,155.67,0.14216157]
[1749041694243,16.06199974,155.68,155.67,18.79181043]
[1749041696654,14.52599974,155.7,155.67,18.79181043]
[1749041696946,14.52599974,155.69,155.68,0.14216157]